fUSD/lending_fUSD_20241118
["ID","MTS","AMOUNT","RATE_DAILY","PERIOD"]
[342506912,1731943837911,-6088.23,9.863e-05,2]
[342506913,1731943837921,-163.52404406,9.863e-05,2]
[342506914,1731943837930,-500.0,9.863e-05,2]
[342506915,1731943837940,-562.67788808,9.863e-05,2]
[342506916,1731943837950,-500.0,9.863e-05,2]
[342506917,1731943837959,-500.0,9.863e-05,2]
[342506918,1731943837968,-500.0,9.863e-05,2]
[342506919,1731943837980,-276.38,9.863e-05,2]
[342506920,1731943837990,-500.0,9.863e-05,2]
[342506921,1731943838000,-339.39178602,9.863e-05,2]
[342506922,1731943838009,-500.0,9.863e-05,2]
[342506923,1731943838018,-500.0,9.863e-05,2]
[342506924,1731943838028,-504.6924761,9.863e-05,2]
[342506925,1731943838037,-610.95707063,9.863e-05,2]
[342506926,1731943838047,-500.0,9.863e-05,2]
[342506927,1731943838057,-500.0,9.863e-05,2]
[342506928,1731943838066,-500.0,9.863e-05,2]
[342506929,1731943838076,-577.21,9.863e-05,2]
[342506930,1731943838085,-500.0,9.863e-05,2]
[342506931,1731943838096,-500.0,9.863e-05,2]
[342506932,1731943838107,-500.0,9.863e-05,2]
[342506933,1731943838116,-500.0,9.863e-05,2]
[342506934,1731943838126,-11241.08501929,9.889e-05,2]
[342506935,1731943838135,-8109.7977,9.893e-05,2]
[342506936,1731943838145,-26502.3618,9.9e-05,2]
[342506937,1731943838154,-1000.0,9.9e-05,2]
[342506938,1731943838164,-1628.0,9.9e-05,2]
[342506939,1731943838174,-10661.25750692,9.952e-05,2]
[342506941,1731943838184,-10661.25750692,9.956e-05,2]
[342506942,1731943838194,-10661.25750692,9.96e-05,2]
[342506943,1731943838203,-312.00000007,9.96e-05,2]
[342506944,1731943838213,-312.00000007,9.961e-05,2]
[342506945,1731943838223,-4608.31314356,9.965e-05,2]
[342506946,1731943838234,-312.00000007,9.975e-05,2]
[342506947,1731943838244,-4608.31314356,9.975e-05,2]
[342506948,1731943838254,-10661.25750692,9.978e-05,2]
[342506949,1731943838264,-200.0,9.978e-05,2]
[342506950,1731943838274,-855.472,9.982e-05,2]
[342506951,1731943838284,-10661.25750692,9.983e-05,2]
[342506952,1731943838293,-4608.31314356,9.989e-05,2]
[342506953,1731943838303,-4608.31314356,9.99e-05,2]
[342506954,1731943838312,-216.57216245,9.99e-05,2]
[342506955,1731943838322,-216.57216237,9.99e-05,2]
[342506956,1731943838332,-216.57216237,9.99e-05,2]
[342506957,1731943838342,-216.57216237,9.99e-05,2]
[342506958,1731943838351,-216.57216237,9.99e-05,2]
[342506960,1731943838360,-216.57216237,9.99e-05,2]
[342506962,1731943838369,-216.57216237,9.99e-05,2]
[342506964,1731943838379,-216.57216237,9.99e-05,2]
[342506965,1731943838388,-216.57216237,9.99e-05,2]
[342506967,1731943838397,-4608.31314356,9.992e-05,2]
[342506969,1731943838407,-382.29586744,9.992e-05,2]
[342506971,1731943838416,-312.00000007,9.995e-05,2]
[342506972,1731943838426,-2254.1,9.996e-05,2]
[342506973,1731943838435,-500.0,9.996e-05,2]
[342506974,1731943838445,-481.27454967,9.996e-05,2]
[342506975,1731943838455,-1652.95,9.996e-05,2]
[342506976,1731943838464,-1652.95,9.996e-05,2]
[342506977,1731943838473,-6088.23,9.996e-05,2]
[342506978,1731943838487,-500.0,9.996e-05,2]
[342506979,1731943838496,-500.0,9.996e-05,2]
[342506980,1731943838505,-500.0,9.996e-05,2]
[342506981,1731943838515,-1600.19,9.997e-05,2]
[342506982,1731943838524,-1600.19,9.997e-05,2]
[342506984,1731943838534,-1600.19,9.997e-05,2]
[342506986,1731943838543,-1600.19,9.997e-05,2]
[342506987,1731943838552,-1600.19,9.997e-05,2]
[342506989,1731943838561,-1600.19,9.997e-05,2]
[342506990,1731943838570,-1600.19,9.997e-05,2]
[342506991,1731943838579,-1600.19,9.997e-05,2]
[342506992,1731943838589,-1600.19,9.997e-05,2]
[342506993,1731943838598,-1600.19,9.997e-05,2]
[342506994,1731943838607,-1600.19,9.997e-05,2]
[342506995,1731943838617,-1600.19,9.997e-05,2]
[342506996,1731943838626,-1600.19,9.997e-05,2]
[342506997,1731943838635,-500.0,9.997e-05,2]
[342506998,1731943838645,-500.0,9.997e-05,2]
[342506999,1731943838655,-500.0,9.997e-05,2]
[342507000,1731943838664,-461.59177265,9.997e-05,2]
[342507001,1731943838674,-8427.94,9.997e-05,2]
[342507002,1731943838683,-8427.94,9.997e-05,2]
[342507003,1731943838692,-8427.94,9.997e-05,2]
[342507004,1731943838702,-8427.94,9.997e-05,2]
[342507005,1731943838711,-1875.85622035,9.997e-05,2]
[342507006,1731943838723,-866.24430096,9.997e-05,2]
[342507007,1731943838770,-759.24215705,9.997e-05,2]
[342507008,1731943838782,-4926.59732164,9.997e-05,2]
[342507009,1731943838791,-3739.47828204,9.997e-05,2]
[342507010,1731943838801,-1118.94582766,9.997e-05,2]
[342507011,1731943838812,-1169.55400002,9.997e-05,2]
[342507012,1731943838823,-2399.96189028,9.997e-05,2]
[342507013,1731943838832,-8427.94,9.997e-05,2]
[342507014,1731943838841,-2838.38675602,9.997e-05,2]
[342507015,1731943838852,-4816.58465703,9.997e-05,2]
[342507016,1731943838872,-299.97589614,9.997e-05,2]
[342507017,1731943838883,-472.99269081,9.997e-05,2]
[342507018,1731943838892,-162.47130919,9.997e-05,2]
[342507019,1731943838907,-5404.02963654,9.997e-05,2]
[342507020,1731943838918,-2861.43905427,9.997e-05,2]
[342507021,1731943838928,-6192.64765417,9.997e-05,2]
[342507022,1731943838939,-2235.29234583,9.997e-05,2]
[342507023,1731943838950,-762.26621436,9.997e-05,2]
[342507024,1731943838963,-2499.43900765,9.997e-05,2]
[342507025,1731943838977,-1994.57184064,9.997e-05,2]
[342507029,1731943839581,-666.74,9.863e-05,2]
[342507030,1731943839592,-350.88906883,9.997e-05,2]
[342507031,1731943839657,-2820.77386852,9.997e-05,2]
[342507032,1731943839666,-355.92083879,9.997e-05,2]
[342507033,1731943839678,-6799.23069082,9.997e-05,2]
[342507034,1731943839736,-604.56431892,9.996e-05,2]
[342507035,1731943839748,-62.17568108,9.996e-05,2]
[342507036,1731943839757,-1272.78847039,9.997e-05,2]
[342507037,1731943839766,-4000.90641085,9.997e-05,2]
[342507038,1731943839796,-824.4,9.997e-05,2]
[342507039,1731943839807,-926.55000002,9.997e-05,2]
[342507040,1731943839817,-350.23355961,9.997e-05,2]
[342507049,1731943842682,-282.15885363,9.996e-05,2]
[342507050,1731943842693,-384.58114637,9.996e-05,2]
[342507051,1731943842702,-2325.85002952,9.997e-05,2]
[342507052,1731943842711,-1082.54643088,9.997e-05,2]
[342507053,1731943842730,-284.1509994,9.997e-05,2]
[342507054,1731943842742,-2594.69256972,9.997e-05,2]
[342507055,1731943842752,-500.0,9.997e-05,2]
[342507056,1731943842762,-500.0,9.997e-05,2]
[342507057,1731943842771,-2254.1,9.997e-05,2]
[342507058,1731943842780,-2254.1,9.997e-05,2]
[342507059,1731943842790,-2254.1,9.997e-05,2]
[342507060,1731943842801,-2254.1,9.997e-05,2]
[342507061,1731943842811,-2254.1,9.997e-05,2]
[342507062,1731943842820,-2254.1,9.997e-05,2]
[342507063,1731943842830,-2254.1,9.997e-05,2]
[342507064,1731943842839,-2254.1,9.997e-05,2]
[342507065,1731943842848,-2254.1,9.997e-05,2]
[342507066,1731943842857,-2254.1,9.997e-05,2]
[342507067,1731943842866,-2254.1,9.997e-05,2]
[342507068,1731943842876,-2254.1,9.997e-05,2]
[342507069,1731943842886,-1147.46,9.997e-05,2]
[342507070,1731943842896,-1147.46,9.997e-05,2]
[342507071,1731943842909,-1147.46,9.997e-05,2]
[342507072,1731943842919,-1147.46,9.997e-05,2]
[342507073,1731943842928,-1147.46,9.997e-05,2]
[342507074,1731943842938,-1147.46,9.997e-05,2]
[342507075,1731943842948,-1147.46,9.997e-05,2]
[342507076,1731943842957,-1147.46,9.997e-05,2]
[342507077,1731943842966,-1147.46,9.997e-05,2]
[342507078,1731943842977,-1147.46,9.997e-05,2]
[342507079,1731943842988,-1147.46,9.997e-05,2]
[342507080,1731943843000,-1147.46,9.997e-05,2]
[342507081,1731943843009,-1147.46,9.997e-05,2]
[342507082,1731943843019,-1652.95,9.997e-05,2]
[342507083,1731943843029,-1652.95,9.997e-05,2]
[342507084,1731943843038,-1652.95,9.997e-05,2]
[342507085,1731943843048,-1652.95,9.997e-05,2]
[342507086,1731943843058,-1652.95,9.997e-05,2]
[342507087,1731943843067,-1652.95,9.997e-05,2]
[342507088,1731943843077,-1355.48578442,9.997e-05,2]
[342507089,1731943843089,-297.46421558,9.997e-05,2]
[342507090,1731943843099,-1652.95,9.997e-05,2]
[342507091,1731943843108,-6088.23,9.997e-05,2]
[342507092,1731943843118,-1652.95,9.997e-05,2]
[342507093,1731943843128,-1652.95,9.997e-05,2]
[342507094,1731943843137,-6088.23,9.997e-05,2]
[342507095,1731943843147,-1652.95,9.997e-05,2]
[342507097,1731943843157,-6088.23,9.997e-05,2]
[342507098,1731943843167,-1652.95,9.997e-05,2]
[342507099,1731943843176,-6088.23,9.997e-05,2]
[342507100,1731943843185,-6088.23,9.997e-05,2]
[342507101,1731943843196,-6088.23,9.997e-05,2]
[342507102,1731943843205,-6088.23,9.997e-05,2]
[342507103,1731943843214,-6088.23,9.997e-05,2]
[342507104,1731943843224,-6088.23,9.997e-05,2]
[342507105,1731943843234,-6088.23,9.997e-05,2]
[342507106,1731943843243,-6088.23,9.997e-05,2]
[342507108,1731943843252,-6088.23,9.997e-05,2]
[342507110,1731943843262,-500.0,9.997e-05,2]
[342507112,1731943843271,-500.0,9.997e-05,2]
[342507113,1731943843281,-500.0,9.997e-05,2]
[342507115,1731943843290,-500.0,9.997e-05,2]
[342507117,1731943843299,-357.75337381,9.997e-05,2]
[342507119,1731943843308,-666.74,9.997e-05,2]
[342507121,1731943843317,-666.74,9.997e-05,2]
[342507122,1731943843326,-666.74,9.997e-05,2]
[342507123,1731943843335,-666.74,9.997e-05,2]
[342507124,1731943843345,-666.74,9.997e-05,2]
[342507126,1731943843355,-666.74,9.997e-05,2]
[342507127,1731943843364,-666.74,9.997e-05,2]
[342507129,1731943843373,-666.74,9.997e-05,2]
[342507131,1731943843383,-666.74,9.997e-05,2]
[342507132,1731943843393,-666.74,9.997e-05,2]
[342507133,1731943843403,-6727.73660526,9.998e-05,2]
[342507134,1731943843416,-763.43869,9.998e-05,2]
[342507135,1731943843427,-559198.97397576,9.998e-05,2]
[342507136,1731943843439,-490.19907248,9.998e-05,2]
[342507137,1731943843451,-4523.55927521,9.998e-05,2]
[342507138,1731943843463,-3935.47249719,9.998e-05,2]
[342507139,1731943843474,-5525.12180299,9.998e-05,2]
[342507140,1731943843495,-20809.1764867,9.998e-05,2]
[342507141,1731943843507,-35305.23360127,9.998e-05,2]
[342507142,1731943843518,-34860.0,9.998e-05,2]
[342507143,1731943843529,-31345.02971897,9.998e-05,2]
[342507144,1731943843554,-469.68973,9.997e-05,2]
[342507145,1731943843790,-197.05027,9.997e-05,2]
[342507146,1731943843800,-5009.21333441,9.998e-05,2]
[342507147,1731943843813,-5289.65691701,9.998e-05,2]
[342507148,1731943843826,-4946.50609782,9.998e-05,2]
[342507149,1731943843838,-485.305,9.998e-05,2]
[342507150,1731943843857,-500.0,9.863e-05,2]
[342507151,1731943843867,-100.0,9.998e-05,2]
[342507159,1731943845532,-362.15,9.078e-05,2]
[342507160,1731943845542,-666.74,9.997e-05,2]
[342507161,1731943845552,-12579.58681066,9.998e-05,2]
[342507164,1731943845563,-23769.6268,9.998e-05,2]
[342507166,1731943845577,-4295.05,9.998e-05,2]
[342507168,1731943845589,-889.76888,9.998e-05,2]
[342507170,1731943845600,-425.52999708,9.998e-05,2]
[342507173,1731943845611,-3730.89184302,9.998e-05,2]
[342507175,1731943845623,-4351.76265003,9.998e-05,2]
[342507186,1731943845726,-835.63432,9.998e-05,2]
[342507189,1731943845743,-6244.11583316,9.998e-05,2]
[342507204,1731943845879,-7454.07031526,9.998e-05,2]
[342507206,1731943845891,-4460.0,9.998e-05,2]
[342507208,1731943845907,-75738.39181368,9.998e-05,2]
[342507210,1731943845918,-8967.98020212,9.998e-05,2]
[342507213,1731943845930,-32894.34514501,9.998e-05,2]
[342507232,1731944118242,800.57,8.219e-05,2]
[342507244,1731944858730,760.54,8.219e-05,2]
[342507293,1731945031944,-198.85,8.911e-05,2]
[342507294,1731945031955,-1000.0,8.982e-05,2]
[342507295,1731945031964,-367.61,8.996e-05,2]
[342507296,1731945031980,-250.0,9e-05,2]
[342507297,1731945031990,-400.0,9e-05,3]
[342507298,1731945031999,-900.0,9.1e-05,3]
[342507299,1731945032009,-1300.0,9.2e-05,3]
[342507300,1731945032019,-150.0,9.26e-05,2]
[342507301,1731945032028,-1800.0,9.3e-05,3]
[342507302,1731945032038,-2200.0,9.4e-05,3]
[342507303,1731945032047,-300.0,9.499e-05,2]
[342507304,1731945032058,-2932.0,9.5e-05,2]
[342507305,1731945032068,-400.0,9.5e-05,3]
[342507306,1731945032077,-400.0,9.6e-05,3]
[342507307,1731945032087,-150.0,9.698e-05,2]
[342507308,1731945032098,-722.6929,9.699e-05,2]
[342507309,1731945032110,-55507.2384,9.699e-05,2]
[342507310,1731945032120,-400.0,9.7e-05,3]
[342507311,1731945032130,-150.0,9.78e-05,2]
[342507312,1731945032140,-150.0,9.793e-05,2]
[342507313,1731945032150,-29923.16812289,9.8e-05,2]
[342507314,1731945032159,-8247.26627246,9.8e-05,2]
[342507315,1731945032169,-400.0,9.8e-05,3]
[342507316,1731945032178,-500.0,9.863e-05,2]
[342507317,1731945032187,-500.0,9.863e-05,2]
[342507318,1731945032197,-500.0,9.863e-05,2]
[342507319,1731945032206,-649.77069488,9.863e-05,2]
[342507320,1731945032216,-500.0,9.863e-05,2]
[342507321,1731945032231,-339.77109124,9.863e-05,2]
[342507322,1731945032240,-575.70161806,9.863e-05,2]
[342507323,1731945032250,-502.32457019,9.863e-05,2]
[342507324,1731945032260,-500.80037683,9.863e-05,2]
[342507325,1731945032275,-500.0,9.863e-05,2]
[342507326,1731945032286,-500.0,9.863e-05,2]
[342507327,1731945032295,-450.89522209,9.863e-05,2]
[342507328,1731945032307,-150.0,9.88e-05,2]
[342507329,1731945032318,-866.0,9.9e-05,3]
[342507330,1731945032328,-150.0,9.919e-05,2]
[342507331,1731945032338,-716.68838051,9.953e-05,2]
[342507332,1731945032347,-1942.39649667,9.968e-05,2]
[342507333,1731945032357,-1942.39649667,9.968e-05,2]
[342507334,1731945032367,-716.68838051,9.968e-05,2]
[342507335,1731945032376,-716.68838051,9.97e-05,2]
[342507336,1731945032387,-160.64090527,9.973e-05,2]
[342507337,1731945032397,-1942.39649667,9.975e-05,2]
[342507338,1731945032407,-716.68838051,9.977e-05,2]
[342507339,1731945032416,-716.68838051,9.978e-05,2]
[342507340,1731945032425,-1942.39649667,9.983e-05,2]
[342507342,1731945032434,-923.529,9.988e-05,2]
[342507344,1731945032443,-150.0,9.988e-05,2]
[342507346,1731945032452,-1499.5184332,9.989e-05,2]
[342507347,1731945032461,-1059.4686525,9.989e-05,2]
[342507349,1731945032473,-1942.39649667,9.991e-05,2]
[342507351,1731945032482,-1304.8768079,9.993e-05,2]
[342507353,1731945032491,-1110.2351826,9.993e-05,2]
[342507355,1731945032501,-915.5935572,9.993e-05,2]
[342507356,1731945032510,-720.9519319,9.993e-05,2]
[342507357,1731945032519,-921.9467015,9.993e-05,2]
[342507358,1731945032530,-784.4247505,9.993e-05,2]
[342507359,1731945032539,-646.9027995,9.993e-05,2]
[342507360,1731945032552,-509.3808484,9.993e-05,2]
[342507361,1731945032561,-500.0,9.996e-05,2]
[342507362,1731945032570,-500.0,9.996e-05,2]
[342507363,1731945032580,-500.0,9.996e-05,2]
[342507364,1731945032589,-500.0,9.996e-05,2]
[342507365,1731945032600,-217.7588,9.996e-05,2]
[342507366,1731945032609,-500.0,9.996e-05,2]
[342507367,1731945032618,-199.4471227,9.996e-05,2]
[342507368,1731945032628,-500.0,9.996e-05,2]
[342507369,1731945032637,-252.16,9.996e-05,2]
[342507370,1731945032646,-500.0,9.996e-05,2]
[342507371,1731945032656,-325.20718848,9.996e-05,2]
[342507372,1731945032665,-500.0,9.996e-05,2]
[342507373,1731945032674,-500.0,9.996e-05,2]
[342507374,1731945032683,-332.75527609,9.996e-05,2]
[342507375,1731945032693,-500.0,9.996e-05,2]
[342507376,1731945032703,-3552.05,9.996e-05,2]
[342507377,1731945032713,-3631.28,9.996e-05,2]
[342507378,1731945032726,-500.0,9.996e-05,2]
[342507379,1731945032736,-555.96384671,9.996e-05,2]
[342507380,1731945032745,-500.0,9.996e-05,2]
[342507381,1731945032754,-514.03286218,9.996e-05,2]
[342507382,1731945032763,-500.0,9.996e-05,2]
[342507383,1731945032773,-1127.15,9.996e-05,2]
[342507384,1731945032783,-1912.67,9.996e-05,2]
[342507385,1731945032792,-2654.26,9.996e-05,2]
[342507386,1731945032801,-8209.44,9.996e-05,2]
[342507387,1731945032811,-500.0,9.996e-05,2]
[342507388,1731945032820,-500.0,9.996e-05,2]
[342507389,1731945032829,-291.70386867,9.996e-05,2]
[342507390,1731945032839,-216.57216237,9.996e-05,2]
[342507391,1731945032848,-500.0,9.996e-05,2]
[342507392,1731945032858,-500.0,9.996e-05,2]
[342507393,1731945032868,-178.98013,9.996e-05,2]
[342507394,1731945032877,-500.0,9.996e-05,2]
[342507395,1731945032887,-1500.0,9.997e-05,2]
[342507396,1731945032896,-500.0,9.997e-05,2]
[342507397,1731945032906,-500.0,9.997e-05,2]
[342507398,1731945032915,-500.0,9.997e-05,2]
[342507399,1731945032925,-500.0,9.997e-05,2]
[342507400,1731945032934,-500.0,9.997e-05,2]
[342507401,1731945032944,-500.0,9.997e-05,2]
[342507402,1731945032953,-500.0,9.997e-05,2]
[342507403,1731945032963,-500.0,9.997e-05,2]
[342507404,1731945032976,-504.97297368,9.997e-05,2]
[342507405,1731945032985,-500.0,9.997e-05,2]
[342507406,1731945032997,-500.0,9.997e-05,2]
[342507407,1731945033008,-500.0,9.997e-05,2]
[342507408,1731945033019,-500.0,9.997e-05,2]
[342507409,1731945033029,-500.0,9.997e-05,2]
[342507410,1731945033040,-500.0,9.997e-05,2]
[342507411,1731945033051,-500.0,9.997e-05,2]
[342507412,1731945033061,-295.03914232,9.997e-05,2]
[342507413,1731945033072,-500.0,9.997e-05,2]
[342507414,1731945033082,-551.14138465,9.997e-05,2]
[342507415,1731945033093,-500.0,9.997e-05,2]
[342507416,1731945033103,-500.0,9.997e-05,2]
[342507417,1731945033114,-500.0,9.997e-05,2]
[342507418,1731945033125,-500.0,9.997e-05,2]
[342507419,1731945033136,-500.0,9.997e-05,2]
[342507420,1731945033150,-500.0,9.997e-05,2]
[342507421,1731945033161,-500.0,9.997e-05,2]
[342507422,1731945033172,-500.0,9.997e-05,2]
[342507423,1731945033183,-500.0,9.997e-05,2]
[342507424,1731945033194,-466.90701435,9.997e-05,2]
[342507425,1731945033204,-3552.05,9.997e-05,2]
[342507426,1731945033216,-3552.05,9.997e-05,2]
[342507427,1731945033252,-3552.05,9.997e-05,2]
[342507428,1731945033266,-3552.05,9.997e-05,2]
[342507429,1731945033279,-3552.05,9.997e-05,2]
[342507430,1731945033289,-3552.05,9.997e-05,2]
[342507431,1731945033300,-3631.28,9.997e-05,2]
[342507432,1731945033312,-3552.05,9.997e-05,2]
[342507433,1731945033323,-1623.81130422,9.997e-05,2]
[342507434,1731945033340,-2007.46869578,9.997e-05,2]
[342507435,1731945033351,-3552.05,9.997e-05,2]
[342507436,1731945033364,-3631.28,9.997e-05,2]
[342507437,1731945033375,-3552.05,9.997e-05,2]
[342507438,1731945033386,-3631.28,9.997e-05,2]
[342507439,1731945033396,-3631.28,9.997e-05,2]
[342507440,1731945033408,-3631.28,9.997e-05,2]
[342507441,1731945033418,-3631.28,9.997e-05,2]
[342507442,1731945033428,-3631.28,9.997e-05,2]
[342507443,1731945033438,-3631.28,9.997e-05,2]
[342507444,1731945033447,-156.33,9.997e-05,2]
[342507445,1731945033458,-500.0,9.997e-05,2]
[342507446,1731945033468,-500.0,9.997e-05,2]
[342507447,1731945033483,-502.32397499,9.997e-05,2]
[342507448,1731945033494,-1127.15,9.997e-05,2]
[342507449,1731945033505,-1127.15,9.997e-05,2]
[342507450,1731945033515,-1127.15,9.997e-05,2]
[342507451,1731945033526,-1127.15,9.997e-05,2]
[342507452,1731945033536,-1127.15,9.997e-05,2]
[342507453,1731945033548,-1127.15,9.997e-05,2]
[342507454,1731945033559,-1127.15,9.997e-05,2]
[342507455,1731945033570,-1127.15,9.997e-05,2]
[342507456,1731945033580,-1127.15,9.997e-05,2]
[342507457,1731945033590,-1912.67,9.997e-05,2]
[342507458,1731945033600,-1912.67,9.997e-05,2]
[342507459,1731945033610,-1912.67,9.997e-05,2]
[342507460,1731945033620,-1912.67,9.997e-05,2]
[342507461,1731945033630,-1912.67,9.997e-05,2]
[342507462,1731945033640,-1912.67,9.997e-05,2]
[342507463,1731945033650,-1912.67,9.997e-05,2]
[342507464,1731945033659,-1912.67,9.997e-05,2]
[342507465,1731945033669,-1912.67,9.997e-05,2]
[342507466,1731945033679,-2654.26,9.997e-05,2]
[342507467,1731945033688,-2654.26,9.997e-05,2]
[342507468,1731945033698,-2654.26,9.997e-05,2]
[342507469,1731945033708,-2654.26,9.997e-05,2]
[342507470,1731945033718,-2654.26,9.997e-05,2]
[342507471,1731945033734,-1522.22015273,9.997e-05,2]
[342507472,1731945033746,-1132.03984727,9.997e-05,2]
[342507473,1731945033757,-2654.26,9.997e-05,2]
[342507474,1731945033767,-2654.26,9.997e-05,2]
[342507475,1731945033777,-577.87415342,9.997e-05,2]
[342507476,1731945033789,-2076.38584658,9.997e-05,2]
[342507477,1731945033798,-1172.29255003,9.997e-05,2]
[342507478,1731945033816,-938.4,9.997e-05,2]
[342507479,1731945033827,-503.24316463,9.997e-05,2]
[342507480,1731945033848,-452.95011032,9.997e-05,2]
[342507481,1731945033860,-1116.19,9.997e-05,2]
[342507482,1731945033871,-4026.36417502,9.997e-05,2]
[342507483,1731945033880,-8209.44,9.997e-05,2]
[342507484,1731945033891,-8209.44,9.997e-05,2]
[342507485,1731945033900,-8209.44,9.997e-05,2]
[342507486,1731945033910,-8209.44,9.997e-05,2]
[342507487,1731945033920,-8209.44,9.997e-05,2]
[342507488,1731945033930,-8209.44,9.997e-05,2]
[342507489,1731945033939,-8209.44,9.997e-05,2]
[342507490,1731945033949,-8209.44,9.997e-05,2]
[342507491,1731945033959,-500.0,9.997e-05,2]
[342507492,1731945033969,-500.0,9.997e-05,2]
[342507493,1731945033982,-500.0,9.997e-05,2]
[342507494,1731945033992,-500.0,9.997e-05,2]
[342507495,1731945034002,-500.0,9.997e-05,2]
[342507496,1731945034012,-500.0,9.997e-05,2]
[342507497,1731945034022,-500.0,9.997e-05,2]
[342507498,1731945034031,-500.0,9.997e-05,2]
[342507499,1731945034041,-42554.00087567,9.998e-05,2]
[342507500,1731945034053,-53203.93819523,9.998e-05,2]
[342507501,1731945034066,-90597.51033702,9.998e-05,2]
[342507502,1731945034078,-25329.9328523,9.998e-05,2]
[342507503,1731945034088,-5359.61958715,9.998e-05,2]
[342507504,1731945034098,-1091.0,9.998e-05,2]
[342507505,1731945034108,-158.804,9.998e-05,2]
[342507506,1731945034118,-41689.19783695,9.998e-05,2]
[342507507,1731945034130,-823374.62212203,9.998e-05,2]
[342507508,1731945034142,-160479.62199152,9.998e-05,2]
[342507509,1731945034153,-755698.43139013,9.998e-05,2]
[342507510,1731945034178,-1598.54784942,9.998e-05,2]
[342507511,1731945034189,-177614.51108857,9.998e-05,2]
[342507512,1731945034201,-2770.97757947,9.998e-05,2]
[342507513,1731945034210,-200.0,9.998e-05,2]
[342507514,1731945034221,-500.0,9.998e-05,2]
[342507515,1731945034233,-200.0,9.998e-05,2]
[342507516,1731945034243,-500.0,9.998e-05,2]
[342507517,1731945034253,-3552.05,9.998e-05,2]
[342507518,1731945034263,-3631.28,9.998e-05,2]
[342507519,1731945034275,-1127.15,9.998e-05,2]
[342507520,1731945034285,-1127.15,9.998e-05,2]
[342507521,1731945034295,-1912.67,9.998e-05,2]
[342507522,1731945034306,-882.81211376,9.998e-05,2]
[342507523,1731945034318,-1771.44788624,9.998e-05,2]
[342507524,1731945034327,-465.98065773,9.998e-05,2]
[342507525,1731945034338,-2188.27934227,9.998e-05,2]
[342507526,1731945034348,-8209.44,9.998e-05,2]
[342507527,1731945034361,-8209.44,9.998e-05,2]
[342507528,1731945034371,-153.32596441,9.999e-05,2]
[342507529,1731945034381,-2704.25680993,9.999e-05,2]
[342507530,1731945034391,-500.84544395,9.999e-05,2]
[342507531,1731945034401,-3552.05,9.999e-05,2]
[342507532,1731945034413,-1178.66028171,9.999e-05,2]
[342507533,1731945034429,-1357.80161589,9.999e-05,2]
[342507548,1731945037852,-500.0,9.997e-05,2]
[342507550,1731945037862,-500.0,9.997e-05,2]
[342507552,1731945037871,-500.0,9.997e-05,2]
[342507554,1731945037881,-500.0,9.997e-05,2]
[342507557,1731945037891,-500.0,9.997e-05,2]
[342507559,1731945037900,-500.0,9.998e-05,2]
[342507561,1731945037909,-1015.5881024,9.999e-05,2]
[342507563,1731945037918,-1008.8877376,9.999e-05,2]
[342507565,1731945037929,-2543.1622624,9.999e-05,2]
[342507566,1731945037940,-3552.05,9.999e-05,2]
[342507567,1731945037950,-647.00357332,9.999e-05,2]
[342507568,1731945037963,-1123.87068724,9.999e-05,2]
[342507569,1731945037976,-1781.17573944,9.999e-05,2]
[342507570,1731945037986,-2156.60714684,9.999e-05,2]
[342507571,1731945037997,-1395.44285316,9.999e-05,2]
[342507572,1731945038009,-875.60466369,9.999e-05,2]
[342507573,1731945038021,-287.94711379,9.999e-05,2]
[342507574,1731945038043,-2467.72822252,9.999e-05,2]
[342507575,1731945038053,-3552.05,9.999e-05,2]
[342507576,1731945038063,-3631.28,9.999e-05,2]
[342507577,1731945038073,-3552.05,9.999e-05,2]
[342507578,1731945038083,-3552.05,9.999e-05,2]
[342507579,1731945038093,-3631.28,9.999e-05,2]
[342507580,1731945038103,-3552.05,9.999e-05,2]
[342507581,1731945038115,-3631.28,9.999e-05,2]
[342507582,1731945038126,-3552.05,9.999e-05,2]
[342507583,1731945038138,-3552.05,9.999e-05,2]
[342507584,1731945038147,-3631.28,9.999e-05,2]
[342507585,1731945038157,-3552.16334778,9.999e-05,2]
[342507586,1731945038167,-3631.28,9.999e-05,2]
[342507587,1731945038176,-3631.28,9.999e-05,2]
[342507588,1731945038186,-3631.28,9.999e-05,2]
[342507589,1731945038195,-3631.28,9.999e-05,2]
[342507590,1731945038205,-3631.28,9.999e-05,2]
[342507591,1731945038215,-3631.28,9.999e-05,2]
[342507592,1731945038227,-3631.28,9.999e-05,2]
[342507593,1731945038236,-3631.28431832,9.999e-05,2]
[342507594,1731945038245,-1127.15,9.999e-05,2]
[342507595,1731945038255,-1127.15,9.999e-05,2]
[342507596,1731945038267,-1127.15,9.999e-05,2]